bitfinex/quotes_SOLUSD_20260102
["timestamp","ask_amount","ask_price","bid_price","bid_amount"]
[1767325425035,0.12273464,127.62,127.58,0.6628892]
[1767325425343,8.87977162,127.61,127.58,0.6628892]
[1767325425940,0.12273464,127.62,127.58,9.54266082]
[1767325426147,8.87977162,127.62,127.57,7.83880184]
[1767325426343,8.87977162,127.62,127.53,14.06542837]
[1767325426344,0.12273464,127.61,127.55,8.87977162]
[1767325426548,8.87977162,127.6,127.56,8.87977162]
[1767325426749,0.12273464,127.6,127.55,8.87977162]
[1767325426951,8.87977162,127.62,127.58,9.54266082]
[1767325427454,9.00250626,127.65,127.6,9.54266082]
[1767325427658,8.87977162,127.65,127.57,0.6628892]
[1767325427853,0.12273464,127.67,127.61,9.54266082]
[1767325428059,8.87977162,127.65,127.61,9.54266082]
[1767325428952,8.87977162,127.65,127.6,0.6628892]
[1767325429254,9.53250626,127.67,127.63,8.87977162]
[1767325429554,0.65273464,127.66,127.63,8.87977162]
[1767325429740,0.65273464,127.66,127.62,9.54266082]
[1767325431356,9.53250626,127.66,127.62,9.54266082]
[1767325431658,0.65273464,127.67,127.63,9.54266082]
[1767325432240,9.53250626,127.67,127.63,9.54266082]
[1767325432441,0.65273464,127.67,127.63,9.54266082]
[1767325432786,8.87977162,127.68,127.64,8.87977162]
[1767325432940,33.87552372,127.72,127.65,8.87977162]
[1767325432941,9.53250626,127.69,127.65,8.87977162]
[1767325433139,0.65273464,127.69,127.65,9.54266082]
[1767325433341,9.53250626,127.69,127.65,9.54266082]
[1767325433558,0.65273464,127.69,127.66,8.87977162]
[1767325433739,8.87977162,127.7,127.66,0.72402399]
[1767325433946,0.66190494,127.7,127.66,9.60379561]
[1767325434162,9.54167656,127.7,127.66,9.60379561]
[1767325434361,9.54167656,127.7,127.66,0.72402399]
[1767325434570,8.87977162,127.69,127.63,15.02402399]
[1767325434748,0.66190494,127.68,127.64,0.72402399]
[1767325435084,0.66190494,127.68,127.65,8.87977162]
[1767325435463,9.54167656,127.66,127.62,8.87977162]
[1767325435973,9.54167656,127.65,127.61,0.72402399]
[1767325436158,9.54167656,127.65,127.61,9.60379561]
[1767325436749,8.87977162,127.65,127.61,9.60379561]
[1767325436955,9.54167656,127.69,127.64,9.60379561]
[1767325437179,9.54167656,127.69,127.65,8.87977162]
[1767325437180,0.66190494,127.69,127.65,8.87977162]
[1767325437386,9.54167656,127.69,127.65,8.87977162]
[1767325437973,9.54167656,127.69,127.64,9.60379561]
[1767325438369,9.54167656,127.69,127.65,8.87977162]
[1767325438760,9.54167656,127.68,127.63,0.72402399]
[1767325438959,9.54167656,127.68,127.64,8.87977162]
[1767325439876,0.66190494,127.67,127.64,8.87977162]
[1767325440286,0.66190494,127.67,127.63,9.60379561]
[1767325440485,9.54167656,127.67,127.62,14.3]
[1767325440688,9.54167656,127.67,127.63,8.87977162]
[1767325441088,0.66190494,127.67,127.63,8.87977162]
[1767325441260,0.66190494,127.67,127.64,8.87977162]
[1767325441586,0.66190494,127.69,127.66,8.87977162]
[1767325441790,0.66190494,127.67,127.63,0.72402399]
[1767325441980,0.66190494,127.66,127.63,8.87977162]
[1767325442571,9.54167656,127.66,127.62,9.60379561]
[1767325443070,0.66190494,127.66,127.63,8.87977162]
[1767325444393,0.66190494,127.66,127.62,0.72402399]
[1767325444590,0.66190494,127.66,127.63,8.87977162]
[1767325444964,0.66190494,127.66,127.62,0.72402399]
[1767325445194,0.66190494,127.66,127.63,8.87977162]
[1767325445768,7.83160629,127.69,127.65,8.87977162]
[1767325445769,0.66190494,127.68,127.65,8.87977162]
[1767325445980,8.87977162,127.69,127.65,8.87977162]
[1767325446177,0.66190494,127.69,127.65,9.60379561]
[1767325446793,8.87977162,127.7,127.63,7.83500591]
[1767325446794,9.54167656,127.71,127.67,8.87977162]
[1767325447095,9.54167656,127.71,127.66,0.72402399]
[1767325447096,0.66190494,127.71,127.68,8.87977162]
[1767325447269,9.54167656,127.71,127.67,8.87977162]
[1767325448085,0.66190494,127.71,127.65,14.3]
[1767325448287,9.54167656,127.7,127.66,8.87977162]
[1767325448488,0.66190494,127.7,127.66,8.87977162]
[1767325449191,0.66190494,127.7,127.65,0.72402399]
[1767325449387,0.66190494,127.7,127.66,8.87977162]
[1767325449578,0.66190494,127.7,127.67,8.87977162]
[1767325451480,0.66190494,127.7,127.66,0.72402399]
[1767325451693,0.66190494,127.7,127.66,9.60379561]
[1767325452498,9.54167656,127.7,127.66,8.87977162]
[1767325452696,8.87977162,127.68,127.63,8.5589483]
[1767325452870,0.66190494,127.69,127.65,8.87977162]
[1767325453076,0.66190494,127.69,127.66,8.87977162]
[1767325453900,0.66190494,127.69,127.65,0.72402399]
[1767325454084,9.54167656,127.69,127.64,8.87977162]
[1767325454288,9.54167656,127.69,127.64,9.60379561]
[1767325454800,0.66190494,127.68,127.64,8.87977162]
[1767325455474,0.66190494,127.68,127.65,8.87977162]
[1767325456205,0.66190494,127.68,127.64,9.60379561]
[1767325456381,8.87977162,127.69,127.61,19.59011092]
[1767325456382,9.54167656,127.65,127.61,9.60379561]
[1767325456577,0.66190494,127.64,127.61,9.60379561]
[1767325456880,9.54167656,127.64,127.6,8.87977162]
[1767325457085,9.54167656,127.64,127.6,9.60379561]
[1767325457590,9.54167656,127.66,127.62,9.60379561]
[1767325457990,0.66190494,127.66,127.62,9.60379561]
[1767325458192,9.54167656,127.66,127.62,9.60379561]
[1767325458397,0.66190494,127.66,127.62,9.60379561]
[1767325458782,9.54167656,127.66,127.62,9.60379561]
[1767325458981,8.87977162,127.65,127.62,0.72402399]
[1767325459692,9.54167656,127.66,127.62,9.60379561]
[1767325459898,0.66190494,127.66,127.63,8.87977162]
[1767325460198,0.66190494,127.68,127.63,9.60379561]
[1767325460375,9.54167656,127.68,127.64,9.60379561]
[1767325461081,9.54167656,127.68,127.64,0.72402399]
[1767325461402,0.66190494,127.67,127.64,8.87977162]
[1767325462482,23.84167656,127.69,127.64,9.60379561]
[1767325462999,23.17977162,127.69,127.65,0.72402399]
[1767325463206,0.66190494,127.68,127.64,8.87977162]
[1767325463400,8.87977162,127.69,127.65,9.54128895]
[1767325463700,9.58199567,127.7,127.65,9.54128895]
[1767325463885,9.58199567,127.69,127.65,0.66151733]
[1767325464081,0.70222405,127.69,127.66,8.87977162]
[1767325465009,9.58199567,127.71,127.66,9.54128895]
[1767325465581,9.56084706,127.7,127.66,9.54128895]
[1767325467594,9.56084706,127.71,127.67,9.54072485]
[1767325468515,9.56084706,127.71,127.67,0.66095323]
[1767325468703,9.56084706,127.71,127.67,9.54072485]
[1767325471101,9.56084706,127.7,127.66,8.87977162]
[1767325471305,9.56084706,127.69,127.65,0.66095323]
[1767325471494,9.56084706,127.69,127.65,9.54072485]
[1767325472108,0.68107544,127.69,127.65,9.54072485]
[1767325472312,0.68107544,127.69,127.66,8.87977162]
[1767325475411,0.68107544,127.69,127.65,0.66095323]
[1767325475610,0.68107544,127.69,127.66,8.87977162]
[1767325475815,0.68107544,127.69,127.65,9.54072485]
[1767325476309,0.68107544,127.69,127.65,0.66095323]
[1767325476491,0.68107544,127.69,127.65,9.54072485]
[1767325476699,0.68107544,127.68,127.65,0.66095323]
[1767325476998,0.68107544,127.66,127.61,8.4972892]
[1767325477195,9.56084706,127.65,127.61,9.54072485]
[1767325477398,9.56084706,127.65,127.61,0.66095323]
[1767325477809,9.56084706,127.65,127.61,9.54072485]
[1767325478115,0.68107544,127.65,127.61,0.66095323]
[1767325478322,9.56084706,127.65,127.61,0.66095323]
[1767325478523,6.14586388,127.65,127.61,0.66095323]
[1767325478998,6.14586388,127.65,127.61,6.12574167]
[1767325479194,20.44586388,127.67,127.63,6.12574167]
[1767325479522,6.14586388,127.67,127.63,6.12574167]
[1767325480201,0.68107544,127.66,127.63,6.12574167]
[1767325481025,0.68107544,127.71,127.65,6.12574167]
[1767325481212,0.68107544,127.7,127.66,5.46478844]
[1767325481725,0.68107544,127.69,127.66,5.46478844]
[1767325481931,0.68107544,127.69,127.65,6.12574167]
[1767325482220,0.68107544,127.69,127.63,14.3]
[1767325482420,0.68107544,127.68,127.64,5.46478844]
[1767325482600,0.68107544,127.68,127.64,2.0390401]
[1767325483015,0.68107544,127.67,127.63,14.96095323]
[1767325483216,0.68107544,127.67,127.64,2.0390401]
[1767325483408,0.68107544,127.67,127.63,14.96095323]
[1767325483615,0.68107544,127.66,127.63,16.3390401]
[1767325484008,0.68107544,127.66,127.63,2.0390401]
[1767325484209,0.68107544,127.66,127.62,8.49670024]
[1767325484522,0.68107544,127.66,127.63,2.69999333]
[1767325485024,0.68107544,127.66,127.63,0.66095323]
[1767325485230,0.68107544,127.66,127.63,2.69999333]
[1767325487724,0.68107544,127.71,127.64,2.0390401]
[1767325487905,2.72011554,127.69,127.65,2.69999333]
[1767325488108,0.68107544,127.69,127.66,2.69999333]
[1767325488306,2.72011554,127.71,127.67,0.66095323]
[1767325489124,0.68107544,127.7,127.66,2.69999333]
[1767325489630,2.72011554,127.7,127.66,2.69999333]
[1767325489822,2.72011554,127.69,127.66,0.66095323]
[1767325490835,0.68107544,127.69,127.66,0.66095323]
[1767325491126,0.68107544,127.69,127.66,2.69999333]
[1767325492107,2.72011554,127.69,127.65,2.0390401]
[1767325492309,2.72011554,127.69,127.65,2.69999333]
[1767325492719,0.68107544,127.68,127.65,0.66095323]
[1767325494202,0.68107544,127.68,127.65,2.69999333]
[1767325494613,2.72011554,127.68,127.64,14.99219919]
[1767325494812,2.72011554,127.68,127.64,17.03123929]
[1767325495104,0.68107544,127.68,127.64,17.03123929]
[1767325495311,0.68107544,127.68,127.65,2.0390401]
[1767325496410,0.68107544,127.68,127.64,17.03123929]
[1767325496735,0.68107544,127.68,127.65,2.73123929]
[1767325497220,2.71886317,127.69,127.65,2.73123929]
[1767325497630,2.0390401,127.69,127.65,2.73123929]
[1767325497806,0.67982307,127.68,127.65,2.73123929]
[1767325499131,2.71886317,127.7,127.66,2.0390401]
[1767325499316,2.71886317,127.7,127.66,0.69219919]
[1767325499629,0.67982307,127.69,127.66,2.73123929]
[1767325500112,2.71886317,127.7,127.66,0.69219919]
[1767325500437,0.67982307,127.73,127.68,2.73123929]
[1767325500728,0.67982307,127.75,127.7,2.73123929]
[1767325500917,0.67982307,127.75,127.71,2.73123929]
[1767325501117,0.67982307,127.75,127.71,0.69219919]
[1767325501311,2.71886317,127.73,127.68,0.69219919]
[1767325501506,2.71886317,127.72,127.68,0.69219919]
[1767325501730,0.67982307,127.71,127.68,0.69219919]
[1767325502609,0.67982307,127.76,127.71,0.69219919]
[1767325502806,2.0390401,127.75,127.71,2.73123929]
[1767325503002,0.67982307,127.75,127.71,2.73123929]
[1767325503318,2.71886317,127.75,127.71,0.69219919]
[1767325503515,2.71886317,127.75,127.71,2.73123929]
[1767325504233,0.67982307,127.75,127.71,2.73123929]
[1767325504412,2.71886317,127.75,127.71,2.73123929]
[1767325504804,0.67982307,127.78,127.72,0.69219919]
[1767325505010,2.0390401,127.76,127.73,0.69219919]
[1767325505210,2.71886317,127.77,127.73,2.73123929]
[1767325505803,14.4,127.79,127.73,2.73123929]
[1767325506030,0.67982307,127.77,127.73,2.73123929]
[1767325506225,2.71886317,127.77,127.73,2.73123929]
[1767325506815,2.71886317,127.77,127.73,2.0390401]
[1767325507016,0.67982307,127.77,127.74,0.69219919]
[1767325509630,2.71886317,127.77,127.74,0.69219919]
[1767325509816,0.67982307,127.77,127.74,0.69219919]
[1767325510018,2.71886317,127.77,127.74,0.69219919]
[1767325510737,0.67982307,127.77,127.74,0.69219919]
[1767325510933,2.71886317,127.77,127.74,0.69219919]
[1767325511440,0.67982307,127.77,127.74,0.69219919]
[1767325511738,2.71886317,127.77,127.74,0.69219919]
[1767325511939,0.67982307,127.77,127.74,0.69219919]
[1767325512353,2.71886317,127.77,127.74,0.69219919]
[1767325512859,7.92539705,127.79,127.75,2.73123929]
[1767325512860,2.81886317,127.79,127.75,2.73123929]
[1767325513233,0.67982307,127.78,127.75,2.73123929]
[1767325513442,2.71886317,127.78,127.74,2.73123929]
[1767325513733,2.71886317,127.78,127.74,0.69219919]
[1767325514040,2.71886317,127.78,127.74,2.73123929]
[1767325516136,2.81886317,127.79,127.75,0.69219919]
[1767325516648,2.81886317,127.79,127.75,2.73123929]
[1767325516649,0.77982307,127.79,127.75,2.73123929]
[1767325516820,2.81886317,127.79,127.75,2.73123929]
[1767325517016,0.77982307,127.79,127.75,2.73123929]
[1767325517218,2.71886317,127.78,127.75,0.69219919]
[1767325517923,2.71886317,127.77,127.73,61.89219919]
[1767325518934,2.71886317,127.76,127.73,61.2]
[1767325519837,2.71886317,127.76,127.73,61.89219919]
[1767325520237,0.67982307,127.76,127.73,61.89219919]
[1767325522143,2.0390401,127.77,127.73,61.89219919]
[1767325522337,2.71886317,127.77,127.73,0.69219919]
[1767325522535,0.67982307,127.77,127.73,2.73123929]
[1767325523046,2.71886317,127.77,127.73,2.73123929]
[1767325523746,2.69941224,127.78,127.74,0.68219991]
[1767325524113,0.72215091,127.77,127.74,0.68219991]
[1767325525244,2.0390401,127.75,127.69,83.33145303]
[1767325525425,2.0390401,127.74,127.7,0.69806972]
[1767325525624,2.0390401,127.74,127.71,0.69806972]
[1767325525824,2.76119101,127.75,127.71,0.69806972]
[1767325526028,2.76119101,127.75,127.72,0.69806972]
[1767325526029,0.72215091,127.75,127.72,0.69806972]
[1767325526450,2.76119101,127.76,127.72,0.69806972]
[1767325526640,2.76119101,127.76,127.72,2.73710982]
[1767325527518,2.0390401,127.76,127.73,0.69806972]
[1767325527720,2.0390401,127.75,127.72,0.69806972]
[1767325527920,0.72215091,127.74,127.7,78.23710982]
[1767325528126,2.76119101,127.74,127.7,78.23710982]
[1767325528527,2.76119101,127.74,127.7,63.93710982]
[1767325529751,2.76119101,127.74,127.7,61.89806972]
[1767325529956,2.76119101,127.73,127.7,61.89806972]
[1767325530128,2.0390401,127.73,127.7,61.89806972]
[1767325531048,2.0390401,127.73,127.7,0.69806972]
[1767325531851,2.0090401,127.73,127.7,0.69806972]
[1767325532055,2.73119101,127.73,127.7,0.69806972]
[1767325532236,2.0090401,127.73,127.7,0.69806972]
[1767325532428,2.76119101,127.74,127.7,0.69806972]
[1767325533348,2.0390401,127.75,127.71,2.0390401]
[1767325533539,2.76119101,127.76,127.72,0.69806972]
[1767325533953,2.76119101,127.75,127.72,0.69806972]
[1767325534250,2.76119101,127.75,127.69,7.83127797]
[1767325534251,2.76119101,127.74,127.7,0.69806972]
[1767325534428,0.72215091,127.73,127.7,0.69806972]
[1767325536054,2.76119101,127.73,127.7,0.69806972]
[1767325536261,2.76119101,127.73,127.68,75.5]
[1767325536262,0.72215091,127.78,127.71,0.69806972]
[1767325536431,2.76119101,127.76,127.72,0.69806972]
[1767325537348,0.72215091,127.75,127.72,0.69806972]
[1767325537554,0.72215091,127.75,127.72,2.73710982]
[1767325538636,0.72215091,127.75,127.72,3.87997415]
[1767325538838,0.72215091,127.74,127.7,3.87997415]
[1767325539235,0.72215091,127.74,127.7,0.69806972]
[1767325539448,0.72215091,127.73,127.69,3.18190443]
[1767325539653,0.72215091,127.73,127.69,3.87997415]
[1767325542040,0.72215091,127.73,127.69,0.69806972]
[1767325542253,3.18190443,127.75,127.71,0.69806972]
[1767325542554,3.90405534,127.75,127.71,0.69806972]
[1767325542743,0.72215091,127.75,127.71,3.18190443]
[1767325542936,0.72215091,127.76,127.72,0.69806972]
[1767325543137,3.90405534,127.77,127.73,0.69806972]
[1767325543336,0.72215091,127.77,127.73,3.87997415]
[1767325543642,3.90405534,127.77,127.73,0.69806972]
[1767325543865,0.72215091,127.76,127.73,0.69806972]
[1767325544167,3.90405534,127.76,127.73,0.69806972]
[1767325545144,0.72215091,127.76,127.73,0.69806972]
[1767325545544,3.90405534,127.77,127.73,0.69806972]
[1767325545844,0.72215091,127.77,127.73,0.69806972]
[1767325546151,3.90405534,127.77,127.73,0.69806972]
[1767325546863,3.18190443,127.77,127.73,0.69806972]
[1767325547066,0.72215091,127.76,127.73,0.69806972]
[1767325547250,7.9255455,127.79,127.73,0.69806972]
[1767325547251,0.1,127.79,127.73,0.69806972]
[1767325547577,3.90405534,127.77,127.73,0.69806972]
[1767325548133,0.72215091,127.76,127.73,0.69806972]
[1767325551052,3.90405534,127.76,127.72,0.69806972]
[1767325553446,3.18190443,127.76,127.71,3.18190443]
[1767325553647,3.84233964,127.72,127.68,0.68888313]
[1767325554241,3.81233964,127.72,127.68,0.68888313]
[1767325554678,3.18190443,127.72,127.67,11.01422482]
[1767325554848,3.18190443,127.69,127.66,0.68888313]
[1767325555971,3.18190443,127.67,127.63,7.83514847]
[1767325556147,0.66043521,127.67,127.63,8.5240316]
[1767325556568,0.66043521,127.67,127.63,22.8240316]
[1767325556958,3.84233964,127.65,127.61,7.83634905]
[1767325557272,0.66043521,127.65,127.62,14.3]
[1767325557748,3.18190443,127.66,127.62,22.82463778]
[1767325557943,3.84233964,127.66,127.62,22.82463778]
[1767325558144,7.82901432,127.73,127.63,7.83503776]
[1767325558371,3.18190443,127.68,127.61,15.68888313]
[1767325558552,3.84233964,127.66,127.62,14.98888313]
[1767325559568,3.84233964,127.66,127.63,0.68888313]
[1767325559762,0.66043521,127.66,127.63,0.68888313]
[1767325560271,3.84233964,127.69,127.65,0.68888313]
[1767325560568,3.84233964,127.69,127.66,14.3]
[1767325560769,3.84233964,127.69,127.66,14.98888313]
[1767325560982,3.18190443,127.68,127.66,14.3]
[1767325561166,3.84233964,127.69,127.66,14.3]
[1767325561859,3.18190443,127.67,127.62,3.18190443]
[1767325562055,3.18190443,127.66,127.61,3.87078756]
[1767325562260,3.18190443,127.66,127.61,14.98888313]
[1767325562473,3.18190443,127.66,127.62,0.68888313]
[1767325563077,3.18190443,127.69,127.65,0.68888313]
[1767325563379,3.18190443,127.69,127.66,0.68888313]
[1767325563576,25.31049308,127.74,127.66,3.18190443]
[1767325563778,3.18190443,127.71,127.67,0.68888313]
[1767325564578,3.18190443,127.7,127.67,0.68888313]
[1767325564780,7.82787157,127.75,127.67,3.87078756]
[1767325564956,7.82739651,127.76,127.69,0.68888313]
[1767325565283,22.12679425,127.77,127.7,0.68888313]
[1767325565467,3.18190443,127.75,127.71,3.18190443]
[1767325565670,3.18190443,127.76,127.72,3.18190443]
[1767325565872,0.1,127.79,127.73,0.68888313]
[1767325566276,7.92539091,127.79,127.73,0.68888313]
[1767325566480,3.18190443,127.76,127.73,0.68888313]
[1767325567280,7.82595085,127.78,127.69,0.68888313]
[1767325567464,3.18190443,127.76,127.72,0.68888313]
[1767325567663,7.92555546,127.79,127.72,0.68888313]
[1767325567863,7.92555546,127.79,127.72,3.87078756]
[1767325568062,3.18190443,127.76,127.72,3.87078756]
[1767325568261,3.18190443,127.73,127.69,0.68888313]
[1767325568568,3.18190443,127.73,127.7,0.68888313]
[1767325569279,3.18190443,127.74,127.7,3.87078756]
[1767325569457,19.66334611,127.79,127.73,0.68888313]
[1767325569458,0.1,127.79,127.73,0.68888313]
[1767325569655,3.18190443,127.76,127.72,3.18190443]
[1767325569882,3.18190443,127.75,127.72,0.68888313]
[1767325570087,3.18190443,127.75,127.71,3.18190443]
[1767325570289,3.18190443,127.73,127.7,0.68888313]
[1767325571370,3.18190443,127.74,127.7,3.87078756]
[1767325571689,3.18190443,127.75,127.72,0.68888313]
[1767325571872,3.18190443,127.74,127.7,0.68888313]
[1767325572267,3.18190443,127.73,127.7,0.68888313]
[1767325572465,3.18190443,127.74,127.7,3.87078756]
[1767325572669,27.39092508,127.78,127.7,3.18190443]
[1767325572895,27.39092508,127.78,127.71,0.68888313]
[1767325573076,3.18190443,127.74,127.71,0.68888313]
[1767325575269,3.18190443,127.75,127.71,0.68888313]
[1767325575495,3.18190443,127.75,127.72,0.68888313]
[1767325575883,3.18190443,127.76,127.73,0.68888313]
[1767325576089,22.22539101,127.79,127.73,0.68888313]
[1767325576288,14.4,127.79,127.73,3.87078756]
[1767325576485,3.18190443,127.77,127.73,3.87078756]
[1767325577193,3.18190443,127.77,127.73,0.68888313]
[1767325577364,3.18190443,127.77,127.73,3.87078756]
[1767325577765,3.18190443,127.77,127.74,0.68888313]
[1767325578493,3.28190443,127.79,127.76,0.68888313]
[1767325578796,0.1,127.79,127.76,0.68888313]
[1767325579296,0.1,127.79,127.76,3.18190443]
[1767325579491,0.1,127.82,127.79,0.68888313]
[1767325579683,0.1,127.82,127.79,3.87078756]
[1767325579884,0.1,127.82,127.8,0.68888313]
[1767325580776,0.1,127.82,127.8,0.66015039]
[1767325580974,3.28190443,127.82,127.75,7.82757686]
[1767325581180,3.18190443,127.81,127.77,3.18190443]
[1767325581379,3.18190443,127.81,127.76,14.3]
[1767325581380,3.41063717,127.82,127.78,3.18190443]
[1767325581580,0.1,127.82,127.78,3.18190443]
[1767325581801,0.1,127.82,127.79,3.18190443]
[1767325582300,3.18190443,127.81,127.74,7.82834952]
[1767325582596,0.22873274,127.82,127.76,3.18190443]
[1767325582793,3.18190443,127.8,127.77,0.68888313]
[1767325583180,3.18190443,127.79,127.75,0.68888313]
[1767325583386,3.18190443,127.77,127.75,0.68888313]
[1767325583706,0.12873274,127.8,127.75,0.68888313]
[1767325583895,3.18190443,127.79,127.75,0.68888313]
[1767325584301,3.18190443,127.78,127.75,0.68888313]
[1767325584504,3.18190443,127.77,127.75,0.68888313]
[1767325584796,3.18190443,127.77,127.73,14.96252732]
[1767325584999,3.18190443,127.77,127.74,0.66252732]
[1767325585302,3.18190443,127.78,127.75,0.66252732]
[1767325588104,3.18190443,127.78,127.75,14.96252732]
[1767325588422,3.18190443,127.78,127.75,14.3]
[1767325588590,3.18190443,127.78,127.76,0.66252732]
[1767325589606,3.18190443,127.77,127.74,14.96252732]
[1767325589809,3.18190443,127.76,127.74,14.96252732]
[1767325590207,3.18190443,127.8,127.74,0.66252732]
[1767325590208,3.18190443,127.75,127.74,0.66252732]
[1767325590611,3.18190443,127.76,127.74,0.66252732]
[1767325591505,0.12873274,127.78,127.74,0.66252732]
[1767325591703,3.18190443,127.76,127.74,0.66252732]
[1767325592809,3.18190443,127.77,127.74,0.66252732]
[1767325593505,3.18190443,127.76,127.74,0.66252732]
[1767325593707,3.18190443,127.76,127.72,0.66252732]
[1767325594007,3.18190443,127.77,127.73,0.66252732]
[1767325594521,11.00686316,127.8,127.73,0.66252732]
[1767325594805,3.18190443,127.78,127.74,0.66252732]
[1767325597093,3.18190443,127.79,127.75,3.18190443]
[1767325597293,3.18190443,127.8,127.76,0.66252732]
[1767325597595,3.18190443,127.79,127.76,0.66252732]
[1767325598126,3.18190443,127.79,127.74,0.66252732]
[1767325598127,3.18190443,127.77,127.74,0.66252732]
[1767325599017,0.12873274,127.79,127.74,0.66252732]
[1767325599392,3.18190443,127.78,127.75,0.66252732]
[1767325599800,3.18190443,127.79,127.75,0.66252732]
[1767325600123,3.18190443,127.8,127.76,0.66252732]
[1767325600600,2.03537104,127.8,127.76,0.66252732]
[1767325601100,2.03537104,127.79,127.76,0.66252732]
[1767325601702,2.03537104,127.79,127.74,63.23537104]
[1767325601905,2.16410378,127.79,127.75,0.66252732]
[1767325602116,2.03537104,127.79,127.75,0.66252732]
[1767325602313,0.12873274,127.8,127.75,0.66252732]
[1767325602514,2.03537104,127.8,127.76,0.66252732]
[1767325604394,2.03537104,127.79,127.76,0.66252732]
[1767325607491,0.12873274,127.79,127.74,0.66252732]
[1767325607693,2.03537104,127.77,127.74,0.66252732]
[1767325608499,2.03537104,127.78,127.74,0.66252732]
[1767325609922,2.03537104,127.77,127.74,0.66252732]
[1767325610219,2.03537104,127.75,127.72,0.66252732]
[1767325612722,1.53537104,127.75,127.71,9.86534546]
[1767325612926,2.03537104,127.76,127.72,0.66252732]
[1767325614328,2.03537104,127.75,127.72,0.66252732]
[1767325614628,0.12873274,127.77,127.72,0.66252732]
[1767325614629,2.03537104,127.76,127.72,0.66252732]
[1767325615224,2.03537104,127.74,127.7,0.67976693]
[1767325615722,0.12873274,127.77,127.71,0.67976693]
[1767325615921,2.03537104,127.75,127.71,0.67976693]
[1767325616301,2.03537104,127.75,127.72,0.67976693]
[1767325616703,2.03537104,127.76,127.72,0.67976693]
[1767325617424,2.03537104,127.76,127.73,0.67976693]
[1767325617722,0.12873274,127.78,127.73,0.67976693]
[1767325617958,2.03537104,127.76,127.73,0.67976693]
[1767325620323,0.12873274,127.78,127.73,0.67976693]
[1767325620525,2.03537104,127.76,127.73,0.67976693]
[1767325622127,2.03537104,127.74,127.7,0.67976693]
[1767325622325,2.03537104,127.73,127.7,0.67976693]
[1767325622709,2.03537104,127.72,127.68,0.67976693]
[1767325624723,2.03537104,127.71,127.68,0.67976693]
[1767325625541,2.03537104,127.7,127.67,14.97976693]
[1767325625921,2.03537104,127.7,127.64,16.18445933]
[1767325625922,2.03537104,127.69,127.64,16.18445933]
[1767325626232,9.86391204,127.74,127.63,0.67976693]
[1767325626233,0.12873274,127.67,127.63,0.67976693]
[1767325626436,2.03537104,127.66,127.63,0.67976693]
[1767325627419,2.03537104,127.66,127.61,0.2]
[1767325627608,2.03537104,127.65,127.61,0.87976693]
[1767325627815,2.03537104,127.67,127.63,0.67976693]
[1767325629326,2.03537104,127.66,127.63,0.67976693]
[1767325629522,2.03537104,127.65,127.61,0.87976693]
[1767325629838,2.00537104,127.65,127.61,2.23537104]
[1767325630021,2.03537104,127.65,127.62,0.67976693]
[1767325630956,2.03537104,127.66,127.62,0.67976693]
[1767325631439,0.09873274,127.67,127.64,0.67976693]
[1767325631440,2.03537104,127.67,127.64,0.67976693]
[1767325631646,0.09873274,127.69,127.64,0.67976693]
[1767325631820,2.03537104,127.67,127.64,0.67976693]
[1767325632619,0.09873274,127.68,127.64,0.67976693]
[1767325632846,2.03537104,127.67,127.64,0.67976693]
[1767325633942,2.13410378,127.68,127.64,0.67976693]
[1767325634121,2.03537104,127.66,127.64,0.67976693]
[1767325634722,2.03537104,127.65,127.62,0.67976693]
[1767325635425,0.09873274,127.7,127.62,0.67976693]
[1767325635637,19.5745506,127.72,127.61,19.79082831]
[1767325635638,2.03537104,127.67,127.63,0.67976693]
[1767325635842,0.09873274,127.68,127.63,0.67976693]
[1767325636041,2.03537104,127.67,127.63,0.67976693]
[1767325636429,2.13410378,127.68,127.64,0.67976693]
[1767325637341,2.03537104,127.67,127.64,0.67976693]
[1767325637543,2.03537104,127.66,127.63,0.67976693]
[1767325637943,2.03537104,127.67,127.63,0.67976693]
[1767325641447,2.03537104,127.66,127.63,0.67976693]
[1767325642642,2.03537104,127.67,127.63,0.67976693]
[1767325644055,2.03537104,127.66,127.63,0.67976693]
[1767325644227,2.03537104,127.66,127.62,0.70107401]
[1767325644737,0.09873274,127.67,127.62,0.70107401]
[1767325644948,2.03537104,127.66,127.62,0.70107401]
[1767325646062,2.13410378,127.66,127.62,0.70107401]
[1767325646361,2.03537104,127.64,127.61,0.2]
[1767325646550,0.09873274,127.64,127.61,0.2]
[1767325646729,2.03537104,127.63,127.61,0.2]
[1767325646923,2.03537104,127.62,127.61,0.2]
[1767325647851,2.13410378,127.63,127.61,0.2]
[1767325650136,0.09873274,127.65,127.61,0.2]
[1767325650342,0.09873274,127.67,127.62,0.70107401]
[1767325650539,2.03537104,127.65,127.61,0.90107401]
[1767325650836,2.03537104,127.66,127.62,0.70107401]
[1767325651352,2.13410378,127.65,127.61,0.90107401]
[1767325652254,9.86745124,127.68,127.61,0.2]
[1767325652472,14.3,127.69,127.64,0.70107401]
[1767325652635,14.3,127.69,127.65,0.70107401]
[1767325652636,2.03537104,127.69,127.65,0.70107401]
[1767325653541,2.03537104,127.69,127.66,0.70107401]
[1767325654141,0.09873274,127.72,127.66,0.70107401]